fUSD/lending_fUSD_20260324
["ID","MTS","AMOUNT","RATE_DAILY","PERIOD"]
[408872904,1774371091882,-1000.01,0.000151,2]
[408872905,1774371092074,-999.99,0.000151,2]
[408872906,1774371092102,-1000.03,0.000152,2]
[408872907,1774371092138,-999.97,0.000152,2]
[408872908,1774371094787,-2000.0,0.000153,2]
[408872909,1774371094829,-1000.01,0.000157,2]
[408872910,1774371094885,-999.99,0.000157,2]
[408872911,1774371106799,-2000.0,0.000158,2]
[408872912,1774371106826,-475.6708,0.000159,2]
[408872913,1774371106859,-48.6684,0.000159,2]
[408872914,1774371106907,-500.0,0.00015973,2]
[408872915,1774371106934,-1533.01,0.00015996,2]
[408872916,1774371106968,-933.99,0.00015996,2]
[408872917,1774371109900,-2136.02293648,0.000159,2]
[408872918,1774371109938,-727.96412704,0.00015996,2]
[408872919,1774371110134,-251.20253963,0.00015996,2]
[408872920,1774371110162,-1215.0,0.00015996,2]
[408872921,1774371110192,-300.0,0.00015999,2]
[408872922,1774371110340,-1467.60492074,0.00015999,2]
[408872923,1774371112854,-1661.76307926,0.00015999,2]
[408872924,1774371112883,-209.429,0.00015999,2]
[408872925,1774371144159,-5000.01,0.00014492,2]
[408872926,1774371144323,-5000.01,0.00014492,2]
[408872927,1774371146915,-5000.01,0.00014492,2]
[408872928,1774371147049,-5000.01,0.00014492,2]
[408872929,1774371150016,-5000.01,0.00014492,2]
[408872930,1774371150192,-5000.01,0.00014492,2]
[408872931,1774371153276,-5000.01,0.00014492,2]
[408872932,1774371153317,-5000.01,0.00014492,2]
[408872933,1774371156474,-5000.01,0.00014492,2]
[408872934,1774371156499,-5000.01,0.00014492,2]
[408872935,1774371158943,-5000.01,0.00014492,2]
[408872936,1774371159046,-5000.01,0.00014492,2]
[408872937,1774371162077,-5000.01,0.00014492,2]
[408872938,1774371162262,-5000.01,0.00014492,2]
[408872939,1774371164999,-5000.01,0.00014492,2]
[408872940,1774371165410,-5000.01,0.00014492,2]
[408872941,1774371181065,5533.0,0.000115,5]
[408872942,1774371181297,5533.0,0.000112,3]
[408872943,1774371181532,92176.0,0.00011,2]
[408872944,1774371310164,338.0,0.00010404,2]
[408872945,1774371310885,338.0,0.00011266,2]
[408872946,1774371311617,339.06384613,0.00011829,2]
[408872947,1774371405822,1205.62,0.00011507,2]
[408872948,1774371559792,10000.0,0.00011852,2]
[408872950,1774371638971,1861.03,7.278e-05,2]
[408872951,1774371639215,1861.03,7.661e-05,2]
[408872952,1774371639429,1861.03,8.044e-05,2]
[408872953,1774371639687,1861.03,8.427e-05,2]
[408872954,1774371639915,1861.03,8.81e-05,2]
[408872955,1774371640126,1861.03,9.193e-05,2]
[408872956,1774371640340,1861.03,9.576e-05,2]
[408872957,1774371640544,1861.03,9.959e-05,2]
[408872958,1774371640746,1861.03,0.00010342,2]
[408872959,1774371640956,1861.03,0.00010725,2]
[408872960,1774371641152,1861.03,0.00011108,2]
[408872961,1774371641377,1861.03,0.00011491,2]
[408872975,1774371973126,-1861.03,0.00011874,2]
[408872976,1774371973154,-191.919741,0.00011965,2]
[408872977,1774371973179,-289.8006139,0.00012066,2]
[408872978,1774371973206,-250.0,0.00012066,2]
[408872979,1774371973233,-1861.03,0.00012257,2]
[408872980,1774371979099,-1861.03,0.0001264,2]
[408872981,1774371979127,-1200.0,0.00012826,2]
[408872982,1774371979153,-300.0,0.00012826,2]
[408872983,1774371979179,-300.0,0.00012826,2]
[408872984,1774371979206,-677.95,0.00012827,2]
[408872985,1774371982068,-1322.05,0.00012827,2]
[408872986,1774371982097,-300.0,0.00013022,2]
[408872987,1774371982125,-1861.03,0.00013023,2]
[408872988,1774371982152,-193.0,0.00013061,2]
[408872989,1774371982178,-250.0,0.00013061,2]
[408872990,1774371982208,-250.0,0.00013061,2]
[408872991,1774371982270,250.0,0.00013,2]
[408873005,1774372050097,-250.0,0.0001319,2]
[408873006,1774372050117,-101.77651913,0.00013229,2]
[408873017,1774372146085,-4898.22348087,0.00013229,2]
[408873018,1774372146107,-300.0,0.00013266,2]
[408873019,1774372146131,-1600.0,0.00013267,2]
[408873020,1774372146151,-10775.58,0.00013267,2]
[408873021,1774372146172,-150.0,0.00013339,2]
[408873022,1774372146193,-5000.0,0.0001334,2]
[408873023,1774372146214,-5000.0,0.0001334,2]
[408873024,1774372146235,-735.04827172,0.0001334,2]
[408873025,1774372146254,-171.663186,0.00013381,2]
[408873026,1774372146278,-1861.03,0.00013406,2]
[408873027,1774372146300,-166.66,0.00013418,2]
[408873028,1774372146320,-500.0,0.00013418,2]
[408873029,1774372146342,-500.0,0.00013418,2]
[408873030,1774372146362,-500.0,0.00013418,2]
[408873031,1774372146382,-500.0,0.00013418,2]
[408873032,1774372146402,-476.06020844,0.00013418,2]
[408873033,1774372146422,-318.0,0.00013418,2]
[408873034,1774372146443,-808.28,0.00013699,2]
[408873035,1774372146464,-166.66,0.000137,2]
[408873036,1774372146489,-1861.03,0.00013789,2]
[408873037,1774372146512,-6169.4902,0.00013805,2]
[408873038,1774372146532,-153.5761414,0.00013897,2]
[408873039,1774372146552,-250.0,0.00013905,2]
[408873040,1774372146572,-22613.40697157,0.00013905,2]
[408873041,1774372147094,-4328.26417879,0.00013896,2]
[408873042,1774372165628,-2695.70566278,0.00013896,2]
[408873043,1774372165648,-24736.86562843,0.00013905,2]
[408873044,1774372165667,-3155.2805,0.00013905,2]
[408873045,1774372165688,-166.66,0.00013983,2]
[408873046,1774372165708,-276.86348673,0.00013986,2]
[408873047,1774372165729,-40092.6259228,0.00013996,2]
[408873048,1774372165753,-150.0,0.00013996,2]
[408873049,1774372165773,-500.0,0.00013997,2]
[408873050,1774372165793,-500.0,0.00013997,2]
[408873051,1774372165814,-500.0,0.00013997,2]
[408873052,1774372165838,-200.0,0.00013997,2]
[408873053,1774372165857,-500.0,0.00013997,2]
[408873054,1774372165878,-500.0,0.00013997,2]
[408873055,1774372165901,-500.0,0.00013997,2]
[408873056,1774372165920,-500.0,0.00013997,2]
[408873057,1774372165941,-501.77371947,0.00013997,2]
[408873058,1774372165961,-500.0,0.00013997,2]
[408873059,1774372165982,-151.0,0.00013997,2]
[408873060,1774372166002,-151.0,0.00013997,2]
[408873061,1774372166022,-151.0,0.00013997,2]
[408873062,1774372166042,-151.0,0.00013997,2]
[408873063,1774372166063,-151.0,0.00013997,2]
[408873064,1774372166083,-151.0,0.00013997,2]
[408873065,1774372166104,-151.0,0.00013997,2]
[408873066,1774372166123,-151.0,0.00013997,2]
[408873067,1774372166143,-151.0,0.00013997,2]
[408873068,1774372166165,-151.0,0.00013997,2]
[408873069,1774372166186,-151.0,0.00013997,2]
[408873070,1774372166205,-151.0,0.00013997,2]
[408873071,1774372166225,-151.0,0.00013997,2]
[408873072,1774372166245,-500.0,0.00013997,2]
[408873073,1774372166269,-151.0,0.00013997,2]
[408873074,1774372166289,-151.0,0.00013997,2]
[408873075,1774372166309,-500.0,0.00013997,2]
[408873076,1774372166329,-151.0,0.00013997,2]
[408873077,1774372166350,-151.0,0.00013997,2]
[408873078,1774372166370,-500.0,0.00013997,2]
[408873079,1774372166390,-151.0,0.00013997,2]
[408873080,1774372166410,-151.0,0.00013997,2]
[408873081,1774372166430,-500.0,0.00013997,2]
[408873082,1774372166450,-500.0,0.00013997,2]
[408873083,1774372166469,-151.0,0.00013997,2]
[408873084,1774372166493,-151.0,0.00013997,2]
[408873085,1774372166513,-500.0,0.00013997,2]
[408873086,1774372166534,-151.0,0.00013997,2]
[408873087,1774372166554,-500.0,0.00013997,2]
[408873088,1774372166576,-500.0,0.00013997,2]
[408873089,1774372166596,-151.0,0.00013997,2]
[408873090,1774372166616,-500.0,0.00013997,2]
[408873091,1774372166637,-500.0,0.00013997,2]
[408873092,1774372166656,-151.0,0.00013997,2]
[408873093,1774372166676,-500.0,0.00013997,2]
[408873094,1774372166700,-500.0,0.00013997,2]
[408873095,1774372166719,-151.0,0.00013997,2]
[408873096,1774372166742,-500.0,0.00013997,2]
[408873097,1774372166766,-151.0,0.00013997,2]
[408873098,1774372166786,-500.0,0.00013997,2]
[408873099,1774372166806,-151.0,0.00013997,2]
[408873100,1774372166828,-500.0,0.00013997,2]
[408873101,1774372166848,-151.0,0.00013997,2]
[408873102,1774372166868,-151.0,0.00013997,2]
[408873103,1774372166888,-151.0,0.00013997,2]
[408873104,1774372166908,-151.0,0.00013997,2]
[408873105,1774372166927,-151.0,0.00013997,2]
[408873106,1774372166947,-126652.90784,0.00014005,2]
[408873107,1774372166966,-500.0,0.00014086,2]
[408873108,1774372166985,-500.0,0.00014086,2]
[408873109,1774372167005,-500.0,0.00014086,2]
[408873110,1774372167024,-500.62395653,0.000141,2]
[408873111,1774372167044,-499.91265482,0.000141,2]
[408873112,1774372167064,-561.7662643,0.00014109,2]
[408873113,1774372167097,-1118.2337357,0.00014109,2]
[408873114,1774372167118,-1861.03,0.00014172,2]
[408873115,1774372167140,-276.86348667,0.00014199,2]
[408873116,1774372167164,-166.66,0.00014265,2]
[408873117,1774372167185,-500.0,0.00014271,2]
[408873118,1774372167206,-383.0,0.00014281,2]
[408873119,1774372167227,-244.87,0.0001431,2]
[408873120,1774372172552,500.0,0.00013267,2]
[408873121,1774372190857,233.49,0.00013267,2]
[408873122,1774372205767,14021.92,0.00013808,2]
[408873123,1774372206121,200.0,0.0001431,2]
[408873131,1774372231482,-150.0,0.000144,2]
[408873132,1774372231492,-484.575,0.0001442,2]
[408873133,1774372231505,-38.425,0.0001442,2]
[408873134,1774372231515,-655.725,0.00014431,2]
[408873135,1774372231526,-712.14855888,0.00014431,2]
[408873136,1774372231585,-632.12644112,0.00014431,2]
[408873137,1774372231607,-255.0,0.00014446,2]
[408873138,1774372231636,-1409.0,0.00014449,2]
[408873139,1774372231650,-21.82335588,0.00014477,2]
[408873140,1774372231666,-942.17664412,0.00014477,2]
[408873141,1774372231680,-300.0,0.0001449,2]
[408873142,1774372231703,-1200.0,0.0001449,2]
[408873143,1774372231714,-500.0,0.00014491,2]
[408873144,1774372231726,-500.0,0.00014491,2]
[408873145,1774372231737,-31.97335588,0.00014491,2]
[408873147,1774372231761,-568.02664412,0.00014491,2]
[408873149,1774372231770,-109406.6121,0.00014492,2]
[408873150,1774372231807,-342.48282919,0.00014492,2]
[408873152,1774372231825,-192.60562854,0.00014492,2]
[408873154,1774372231834,-171.41855194,0.000145,2]
[408873156,1774372231847,-500.0,0.000145,2]
[408873158,1774372231856,-548.75458945,0.000145,2]
[408873160,1774372231865,-836.0,0.00014506,2]
[408873161,1774372231874,-5000.0,0.0001451,2]
[408873163,1774372231884,-1271.0,0.00014535,2]
[408873165,1774372231914,-200.0,0.00014545,2]
[408873166,1774372231931,-166.66,0.00014548,2]
[408873167,1774372231955,-200.0,0.00014555,2]
[408873168,1774372231966,-150.0,0.00014555,2]
[408873169,1774372231976,-5000.01,0.00014555,2]
[408873170,1774372231986,-326.98,0.00014555,2]
[408873171,1774372231997,-1861.03,0.00014555,2]
[408873172,1774372232007,-1521.0,0.00014564,2]
[408873173,1774372232017,-510.66843448,0.00014634,2]
[408873174,1774372232028,-501.32590784,0.00014634,2]
[408873175,1774372232037,-1000.0,0.00014634,2]
[408873176,1774372232049,-460.0,0.00014713,2]
[408873177,1774372232059,-502.75676599,0.00014718,2]
[408873178,1774372232069,-500.13992737,0.00014718,2]
[408873179,1774372232089,-500.0,0.00014718,2]
[408873180,1774372232098,-16281.25930588,0.00014722,2]
[408873181,1774372232108,-500.0,0.00014722,2]
[408873182,1774372232117,-500.0,0.00014722,2]
[408873183,1774372232127,-500.0,0.00014722,2]
[408873184,1774372232137,-501.80799623,0.00014722,2]
[408873185,1774372232146,-412.0,0.00014743,2]
[408873186,1774372232155,-1346.0,0.00014759,2]
[408873187,1774372232165,-434.0,0.00014772,2]
[408873188,1774372232175,-1719.0,0.00014788,2]
[408873189,1774372232187,-413.0,0.00014801,2]
[408873190,1774372232196,-166.66,0.0001483,2]
[408873191,1774372232205,-500.0,0.00014831,2]
[408873192,1774372232215,-497.0,0.00014831,2]
[408873193,1774372232224,-487.0,0.0001486,2]
[408873194,1774372232233,-281.0,0.0001489,2]
[408873195,1774372232242,-226.0,0.00014919,2]
[408873196,1774372232252,-1600.0,0.00014925,2]
[408873197,1774372232260,-397.0,0.00014948,2]
[408873198,1774372232270,-277.0,0.00014978,2]
[408873199,1774372232279,-412.0,0.00015007,2]
[408873200,1774372232288,-500.0,0.00015011,2]
[408873201,1774372232298,-500.0,0.00015011,2]
[408873202,1774372232307,-500.0,0.00015011,2]
[408873203,1774372232316,-385.0,0.00015036,2]
[408873204,1774372232325,-985.0,0.0001504,2]
[408873205,1774372232335,-591.58519453,0.00015048,2]
[408873206,1774372232344,-209.58598272,0.00015067,2]
[408873207,1774372232354,-214.4442,0.00015069,2]
[408873208,1774372232364,-500.0,0.000151,2]
[408873209,1774372232375,-271.19077047,0.00015164,2]
[408873210,1774372232386,-500.0,0.00015164,2]
[408873211,1774372232397,-193.89943557,0.00015164,2]
[408873212,1774372232407,-646.83923782,0.00015164,2]
[408873213,1774372232418,-646.83923782,0.00015164,2]
[408873214,1774372232433,-276.99683744,0.00015164,2]
[408873215,1774372232445,-646.83923782,0.00015164,2]
[408873216,1774372232461,-646.83923782,0.00015164,2]
[408873217,1774372232479,-646.83923782,0.00015164,2]
[408873218,1774372232491,-500.0,0.00015164,2]
[408873219,1774372232503,-646.83923782,0.00015164,2]
[408873220,1774372232514,-646.83923782,0.00015164,2]
[408873221,1774372232525,-646.83923782,0.00015164,2]
[408873222,1774372232535,-646.83923782,0.00015164,2]
[408873223,1774372232545,-646.83923782,0.00015164,2]
[408873224,1774372232557,-646.83923782,0.00015164,2]
[408873225,1774372232567,-646.83923782,0.00015164,2]
[408873226,1774372232581,-646.83923782,0.00015164,2]
[408873227,1774372232591,-646.83923782,0.00015164,2]
[408873228,1774372232602,-646.83923782,0.00015164,2]
[408873229,1774372232613,-646.83923782,0.00015164,2]
[408873230,1774372232623,-646.83923782,0.00015164,2]
[408873231,1774372232989,-646.83923782,0.00015164,2]
[408873232,1774372232999,-646.83923782,0.00015164,2]
[408873233,1774372233009,-646.83923782,0.00015164,2]
[408873234,1774372233018,-646.83923782,0.00015164,2]
[408873235,1774372233027,-646.83923782,0.00015164,2]
[408873236,1774372233036,-646.83923782,0.00015164,2]
[408873237,1774372233045,-646.83923782,0.00015164,2]
[408873238,1774372233054,-646.83923782,0.00015164,2]
[408873239,1774372233063,-646.83923782,0.00015164,2]
[408873240,1774372233072,-646.83923782,0.00015164,2]
[408873241,1774372233082,-646.83923782,0.00015164,2]
[408873242,1774372233091,-646.83923782,0.00015164,2]
[408873243,1774372233099,-646.83923782,0.00015164,2]
[408873244,1774372233111,-646.83923782,0.00015164,2]
[408873245,1774372233120,-646.83923782,0.00015164,2]
[408873246,1774372233130,-646.83923782,0.00015164,2]
[408873247,1774372233139,-646.83923782,0.00015164,2]
[408873248,1774372233148,-646.83923782,0.00015164,2]
[408873249,1774372233157,-646.83923782,0.00015164,2]
[408873250,1774372233166,-646.83923782,0.00015164,2]
[408873251,1774372233175,-646.83923782,0.00015164,2]
[408873252,1774372233187,-646.83923782,0.00015164,2]
[408873253,1774372233198,-646.83923782,0.00015164,2]
[408873254,1774372233207,-646.83923782,0.00015164,2]
[408873255,1774372233217,-646.83923782,0.00015164,2]
[408873256,1774372233226,-646.83923782,0.00015164,2]
[408873257,1774372233236,-646.83923782,0.00015164,2]
[408873258,1774372233245,-646.83923782,0.00015164,2]
[408873259,1774372233254,-938.07443183,0.00015164,2]
[408873260,1774372233263,-938.07443183,0.00015164,2]
[408873261,1774372233272,-938.07443183,0.00015164,2]
[408873262,1774372233281,-938.07443183,0.00015164,2]
[408873263,1774372233290,-938.07443183,0.00015164,2]
[408873264,1774372233299,-938.07443183,0.00015164,2]
[408873265,1774372233311,-938.07443183,0.00015164,2]
[408873266,1774372233320,-938.07443183,0.00015164,2]
[408873267,1774372233329,-938.07443183,0.00015164,2]
[408873268,1774372233338,-938.07443183,0.00015164,2]
[408873269,1774372233347,-938.07443183,0.00015164,2]
[408873270,1774372233356,-938.07443183,0.00015164,2]
[408873271,1774372233366,-938.07443183,0.00015164,2]
[408873272,1774372233375,-938.07443183,0.00015164,2]
[408873273,1774372233384,-938.07443183,0.00015164,2]
[408873274,1774372233393,-938.07443183,0.00015164,2]
[408873275,1774372233403,-938.07443183,0.00015164,2]
[408873276,1774372233412,-938.07443183,0.00015164,2]
[408873277,1774372233421,-938.07443183,0.00015164,2]
[408873278,1774372233432,-938.07443183,0.00015164,2]
[408873279,1774372233441,-938.07443183,0.00015164,2]
[408873280,1774372233450,-938.07443183,0.00015164,2]
[408873281,1774372233460,-938.07443183,0.00015164,2]
[408873282,1774372233469,-938.07443183,0.00015164,2]
[408873283,1774372233478,-938.07443183,0.00015164,2]
[408873284,1774372233488,-938.07443183,0.00015164,2]
[408873285,1774372233497,-938.07443183,0.00015164,2]
[408873286,1774372233508,-938.07443183,0.00015164,2]
[408873287,1774372233518,-938.07443183,0.00015164,2]
[408873288,1774372233527,-938.07443183,0.00015164,2]
[408873289,1774372233536,-938.07443183,0.00015164,2]
[408873290,1774372233546,-938.07443183,0.00015164,2]
[408873291,1774372233555,-938.07443183,0.00015164,2]
[408873292,1774372233564,-938.07443183,0.00015164,2]
[408873293,1774372233573,-938.07443183,0.00015164,2]
[408873294,1774372233583,-938.07443183,0.00015164,2]
[408873295,1774372233592,-1104.74109849,0.00015164,2]
[408873296,1774372233601,-1104.74109849,0.00015164,2]
[408873297,1774372233610,-1104.74109849,0.00015164,2]
[408873298,1774372233620,-1104.74109849,0.00015164,2]
[408873299,1774372233629,-1104.74109849,0.00015164,2]
[408873300,1774372233639,-1104.74109849,0.00015164,2]
[408873301,1774372233648,-50565.44271106,0.00015166,2]
[408873302,1774372233657,-296.893825,0.00015172,7]
[408873303,1774372233667,-1500.0,0.00015182,2]
[408873304,1774372233676,-150.0,0.000152,2]
[408873305,1774372233687,-250.72299322,0.000152,2]
[408873306,1774372233696,-500.0,0.000152,2]
[408873307,1774372233707,-500.26487115,0.000152,2]
[408873308,1774372233716,-150.0,0.000152,2]
[408873309,1774372233726,-1000.0,0.00015266,2]
[408873310,1774372233735,-1005.95771928,0.0001527,2]
[408873311,1774372233745,-1000.0,0.0001527,2]
[408873312,1774372233754,-1000.0,0.0001527,2]
[408873313,1774372233767,-390.0,0.00015331,2]
[408873314,1774372233777,-372.0,0.00015363,2]
[408873315,1774372233787,-500.0,0.00015399,2]
[408873316,1774372233796,-162.64664503,0.00015445,2]
[408873317,1774372233807,-4000.0,0.00015507,2]
[408873318,1774372233816,-162.64664501,0.0001551,2]
[408873319,1774372233825,-621.0,0.00015545,2]
[408873320,1774372233834,-1345.0,0.00015545,2]
[408873321,1774372233845,-1215.0,0.00015545,2]
[408873322,1774372233853,-1000.0,0.00015559,2]
[408873323,1774372233863,-1000.0,0.00015559,2]
[408873324,1774372233872,-162.64664501,0.00015575,2]
[408873325,1774372233881,-197.125,0.000156,2]
[408873326,1774372233890,-162.64664501,0.0001564,2]
[408873327,1774372233899,-433.0,0.00015646,2]
[408873328,1774372233918,-1000.63263987,0.00015648,2]
[408873329,1774372233928,-998.51119769,0.0001568,2]
[408873330,1774372233938,-276.86348667,0.00015687,2]
[408873331,1774372233948,-162.64664501,0.00015705,2]
[408873332,1774372233957,-5000.0,0.00015726,2]
[408873333,1774372233967,-500.0,0.0001573,2]
[408873334,1774372233976,-1004.67871963,0.00015748,2]
[408873335,1774372233986,-162.64664501,0.0001577,2]
[408873336,1774372233996,-2503.494,0.00015796,2]
[408873337,1774372234005,-500.0,0.00015799,2]
[408873338,1774372234015,-1000.0,0.000158,2]
[408873339,1774372234024,-209.43,0.00015802,2]
[408873340,1774372234034,-630.13314617,0.00015814,2]
[408873341,1774372234043,-429.84899427,0.00015818,2]
[408873342,1774372234053,-1500.0,0.00015818,2]
[408873343,1774372234063,-500.0,0.00015825,2]
[408873344,1774372234073,-500.0,0.00015825,2]
[408873345,1774372234083,-500.0,0.00015825,2]
[408873346,1774372234092,-3024.1851172,0.00015826,2]
[408873347,1774372234102,-484668.222851,0.00015826,2]
[408873348,1774372234111,-1858.0756167,0.00015826,2]
[408873349,1774372234120,-3762.0,0.00015827,2]
[408873350,1774372234130,-415.0,0.00015827,2]
[408873351,1774372234139,-162.64664501,0.00015835,2]
[408873352,1774372234149,-808.28,0.00015862,2]
[408873353,1774372234158,-420.0,0.00015867,2]
[408873354,1774372234167,-2000.0,0.0001589,2]
[408873355,1774372234177,-4000.0,0.00015895,2]
[408873356,1774372234190,-32984.9071,0.00015899,2]
[408873357,1774372234204,-276.86348667,0.000159,2]
[408873358,1774372234214,-761.26365143,0.000159,2]
[408873359,1774372234224,-8866.33628246,0.000159,2]
[408873360,1774372234234,-160.87254113,0.000159,2]
[408873361,1774372234243,-162.64664501,0.000159,2]
[408873362,1774372234253,-195.69,0.00015925,2]
[408873363,1774372234263,-437.66,0.00015929,2]
[408873364,1774372234283,-1680.0,0.00015939,2]
[408873365,1774372234294,-400.0,0.0001597,2]
[408873366,1774372234307,-500.0,0.00015973,2]
[408873367,1774372234317,-500.0,0.00015973,2]
[408873368,1774372234327,-500.0,0.00015973,2]
[408873369,1774372234337,-500.0,0.00015973,2]
[408873370,1774372234346,-500.0,0.00015973,2]
[408873371,1774372234356,-500.0,0.00015973,2]
[408873372,1774372234366,-500.0,0.00015973,2]
[408873373,1774372234375,-500.21901505,0.00015973,2]
[408873374,1774372234385,-500.0,0.00015973,2]
[408873375,1774372234395,-209.45111758,0.00015973,2]
[408873376,1774372234407,-500.0,0.00015973,2]
[408873377,1774372234416,-1699.0,0.0001599,5]
[408873378,1774372234431,-407.15097073,0.0001599,2]
[408873379,1774372234448,-407.15097073,0.0001599,2]
[408873380,1774372234460,-407.15097073,0.0001599,2]
[408873381,1774372234470,-3515.0,0.00015996,2]
[408873382,1774372234480,-223.076206,0.00015997,2]
[408873383,1774372234490,-522.2172541,0.00015998,2]
[408873384,1774372234499,-666.0,0.00015999,2]
[408873385,1774372234509,-507.47868068,0.00015999,2]
[408873386,1774372234519,-345.87604089,0.00015999,2]
[408873387,1774372234529,-411.9999991,0.00015999,2]
[408873388,1774372234539,-415.82184582,0.00015999,2]
[408873389,1774372234549,-500.0,0.00015999,2]
[408873390,1774372234558,-500.0,0.00015999,2]
[408873391,1774372234568,-409.1332426,0.00015999,2]
[408873392,1774372234578,-280.70815421,0.00015999,2]
[408873393,1774372234595,-219.29184579,0.00015999,2]
[408873394,1774372234605,-372.78667438,0.00015999,2]
[408873395,1774372234614,-500.0,0.00015999,2]
[408873396,1774372234624,-500.0,0.00015999,2]
[408873397,1774372234634,-500.0,0.00015999,2]
[408873398,1774372234643,-252.62598773,0.00015999,2]
[408873399,1774372234652,-500.0,0.00015999,2]
[408873400,1774372234663,-1866.0,0.00016,5]
[408873401,1774372234672,-39538.42424302,0.00016,2]
[408873402,1774372234685,-64082.9323632,0.00016,2]
[408873403,1774372234700,-211566.36042088,0.00016,2]
[408873407,1774372237517,-494.9810008,0.00016,2]
[408873408,1774372237572,-408.54905294,0.00016,2]
[408873410,1774372237735,-4468.54357083,0.00016,2]
[408873411,1774372237762,-672.40891724,0.00016,2]
[408873412,1774372237774,-3837.74133231,0.00016,2]
[408873413,1774372237786,-1121.02694339,0.00016,2]
[408873414,1774372237799,-3451.77325214,0.00016,2]
[408873415,1774372237811,-952.93980115,0.00016,2]
[408873416,1774372237822,-302.0,0.00016,2]
[408873417,1774372237847,-6826367.86347721,0.00016,2]
[408873418,1774372237856,-670988.74083223,0.00016,2]
[408873458,1774372239844,-5979.11430167,0.00016,2]
[408873459,1774372239856,-618.50592583,0.00016,2]
[408873460,1774372240587,-333.33370294,0.00015827,2]
[408873478,1774372242913,-2133.66629706,0.00015827,2]
[408873479,1774372242923,-27112.21105185,0.00016,2]
[408873480,1774372242967,-500.60911843,0.00016,2]
[408873487,1774372245647,-438.61250341,0.00016,2]
[408873488,1774372245745,-1514.2022,0.00016,2]
[408873489,1774372245756,-1798.53085205,0.00016,2]
[408873490,1774372245809,-603.0,0.00016,2]
[408873507,1774372254424,1000.0,0.000104,5]
[408873508,1774372273979,3240.0,0.00013614,2]
[408873509,1774372310373,2282.16,0.00013805,2]
[408873514,1774372718060,168.06,0.00011431,2]
[408873521,1774373228387,-2311.61187507,0.00013439,2]
[408873522,1774373228406,-250.0,0.00013539,2]
[408873523,1774373228425,-300.0,0.00013539,2]
[408873524,1774373228445,-1178.06959465,0.00013613,2]
[408873547,1774373354866,-500.0,0.00013446,2]
[408873548,1774373354888,-300.0,0.00013612,2]
[408873549,1774373354910,-21.93040535,0.00013613,2]
[408873550,1774373354931,-300.0,0.00013613,2]
[408873551,1774373354952,-150.0,0.00013613,2]
[408873552,1774373354973,-300.0,0.00013613,2]
[408873553,1774373354993,-200.0,0.00013614,2]
[408873554,1774373355013,-2684.81,0.00013614,2]
[408873555,1774373355032,-3658.78,0.00013614,2]
[408873556,1774373355055,-47045.85425465,0.00013614,2]
[408873557,1774373355110,-946.92425841,0.00013614,2]
[408873558,1774373357117,-2912.48148694,0.00013614,2]
[408873559,1774373357139,-250.0,0.00013667,2]
[408873560,1774373357161,-300.0,0.00013667,2]
[408873561,1774373357183,-300.92962121,0.00013667,2]
[408873562,1774373357203,-171.0,0.00013805,3]
[408873563,1774373357223,-15184.72,0.0001384,2]
[408873564,1774373357243,-208.3,0.00013911,2]
[408873565,1774373357264,-414.84,0.00013952,2]
[408873566,1774373357286,-150.0,0.00014,2]
[408873567,1774373357306,-1852.03794754,0.0001421,7]
[408873568,1774373373099,-528.0,0.00014,2]
[408873569,1774373373119,-443.88166001,0.0001421,7]
[408873570,1774373373141,-234.86,0.00014288,2]